bitfinex/quotes_BTCUSD_20240718
["timestamp","ask_amount","ask_price","bid_price","bid_amount"]
[1721318116861,0.83082412,63530.0,63529.0,2.011e-05]
[1721318117079,0.066,63530.0,63529.0,2.011e-05]
[1721318117298,0.157405,63530.0,63529.0,2.011e-05]
[1721318117509,0.162405,63530.0,63529.0,2.011e-05]
[1721318117716,0.527216,63530.0,63529.0,2.011e-05]
[1721318117928,0.212405,63530.0,63529.0,2.011e-05]
[1721318118147,0.207405,63530.0,63529.0,2.011e-05]
[1721318118360,0.522216,63530.0,63529.0,2.011e-05]
[1721318118580,0.530216,63530.0,63529.0,2.011e-05]
[1721318118799,0.215405,63530.0,63529.0,2.011e-05]
[1721318120052,0.207405,63530.0,63529.0,2.011e-05]
[1721318120265,0.522216,63530.0,63529.0,2.011e-05]
[1721318120479,0.536216,63530.0,63529.0,2.011e-05]
[1721318120690,0.851027,63530.0,63529.0,2.011e-05]
[1721318120898,0.837027,63530.0,63529.0,2.011e-05]
[1721318121116,0.522216,63530.0,63529.0,2.011e-05]
[1721318121329,0.847027,63530.0,63529.0,2.011e-05]
[1721318121560,0.532216,63530.0,63529.0,2.011e-05]
[1721318121840,0.522216,63530.0,63529.0,2.011e-05]
[1721318122053,0.05,63530.0,63529.0,2.011e-05]
[1721318122304,0.522216,63530.0,63529.0,2.011e-05]
[1721318122729,0.05,63530.0,63529.0,2.011e-05]
[1721318123154,0.207397,63534.0,63529.0,2.011e-05]
[1721318123361,0.002794,63533.0,63529.0,2.011e-05]
[1721318123590,0.052794,63533.0,63529.0,2.011e-05]
[1721318123809,0.04645758,63538.0,63529.0,2.011e-05]
[1721318123810,0.09291517,63553.0,63546.0,0.157365]
[1721318124030,0.11614396,63557.0,63548.0,0.31472]
[1721318124031,0.04645758,63557.0,63548.0,0.31472]
[1721318124241,0.05084,63560.0,63552.0,0.157349]
[1721318124690,0.05084,63560.0,63553.0,0.00693733]
[1721318124691,0.00084,63560.0,63553.0,0.00693733]
[1721318124911,0.00084,63560.0,63554.0,0.07937083]
[1721318125119,0.00084,63560.0,63559.0,0.157334]
[1721318125582,0.00084,63560.0,63559.0,0.79356667]
[1721318126023,0.00084,63560.0,63559.0,1.26261641]
[1721318126289,0.00084,63560.0,63559.0,1.41696598]
[1721318126496,0.00084,63560.0,63559.0,1.49346598]
[1721318127225,0.00184,63560.0,63559.0,1.49346598]
[1721318127708,0.00084,63560.0,63559.0,1.49346598]
[1721318127995,0.53907521,63566.0,63565.0,1.101233]
[1721318127996,0.48962064,63566.0,63565.0,1.101233]
[1721318128276,0.44477771,63566.0,63565.0,2.01032753]
[1721318128965,0.20332433,63566.0,63565.0,2.03332753]
[1721318129187,0.20332433,63566.0,63565.0,2.16503228]
[1721318129416,0.20332433,63566.0,63565.0,2.12309578]
[1721318130107,0.00834,63593.0,63592.0,0.157252]
[1721318130318,0.00834,63593.0,63592.0,0.62613774]
[1721318130531,0.00834,63593.0,63592.0,0.94064174]
[1721318130955,0.00834,63593.0,63592.0,0.62613774]
[1721318131417,0.00834,63593.0,63584.0,0.157271]
[1721318131622,0.00834,63593.0,63585.0,0.31164974]
[1721318131843,0.066,63585.0,63570.0,0.0419365]
[1721318132060,0.066,63585.0,63567.0,0.314627]
[1721318132061,0.05,63581.0,63567.0,0.314627]
[1721318132293,0.05,63578.0,63568.0,0.15438174]
[1721318132515,0.207302,63572.0,63567.0,0.01456708]
[1721318132735,0.05,63566.0,63557.0,0.002794]
[1721318132952,0.364643,63564.0,63556.0,0.002794]
[1721318133163,0.05,63563.0,63547.0,0.31752]
[1721318133378,0.05,63563.0,63553.0,0.314695]
[1721318133612,0.05,63563.0,63554.0,0.18864524]
[1721318133836,0.1425,63565.0,63554.0,0.1955169]
[1721318134133,0.05,63573.0,63555.0,0.07717479]
[1721318134386,0.04637488,63584.0,63571.0,0.157302]
[1721318134387,0.05,63580.0,63571.0,0.157302]
[1721318134624,0.0648,63581.0,63572.0,0.05043761]
[1721318134869,0.1319,63584.0,63572.0,0.0472919]
[1721318134870,0.05,63580.0,63572.0,0.0472919]
[1721318135116,0.05,63583.0,63573.0,0.23470224]
[1721318135401,0.05,63583.0,63574.0,0.00314548]
[1721318135585,0.1319,63584.0,63574.0,0.00314548]
[1721318135800,0.05,63576.0,63575.0,0.04721272]
[1721318136018,0.05,63564.0,63563.0,0.002794]
[1721318136232,0.05,63560.0,63555.0,0.002794]
[1721318136452,0.05,63555.0,63550.0,0.002794]
[1721318136701,0.05,63560.0,63551.0,0.0160156]
[1721318136934,0.314643,63564.0,63552.0,0.002794]
[1721318136935,0.05,63562.0,63552.0,0.002794]
[1721318137155,0.05,63563.0,63553.0,0.06521593]
[1721318137358,0.207325,63563.0,63554.0,0.002794]
[1721318137584,0.05,63563.0,63555.0,0.2560851]
[1721318137802,0.0648,63567.0,63557.0,0.314676]
[1721318138036,0.0648,63567.0,63563.0,0.07717479]
[1721318138255,0.062,63575.0,63565.0,0.157317]
[1721318138467,0.05,63574.0,63566.0,0.05798828]
[1721318138686,0.05,63574.0,63558.0,0.160129]
[1721318138687,0.05,63570.0,63558.0,0.160129]
[1721318138903,0.05,63570.0,63559.0,0.31171474]
[1721318139128,0.207308,63570.0,63560.0,0.002794]
[1721318139346,0.005,63567.0,63561.0,0.03145127]
[1721318139563,0.005,63567.0,63563.0,0.157323]
[1721318139783,0.005,63567.0,63564.0,0.002794]
[1721318140010,0.005,63567.0,63565.0,0.07377828]
[1721318140222,0.005,63567.0,63566.0,0.002794]
[1721318140369,0.005,63567.0,63566.0,0.16011]
[1721318140582,0.005,63567.0,63566.0,0.002794]
[1721318140793,0.1117,63580.0,63566.0,0.15438174]
[1721318141032,0.05,63579.0,63567.0,0.49244479]
[1721318141195,0.05,63568.0,63567.0,0.02343505]
[1721318141397,0.15753072,63578.0,63556.0,0.157341]
[1721318141398,0.157316,63567.0,63556.0,0.157341]
[1721318141624,0.157309,63569.0,63557.0,0.160131]
[1721318141822,0.15753072,63578.0,63558.0,0.10210685]
[1721318141823,0.05,63566.0,63558.0,0.10210685]
[1721318142082,0.15438174,63578.0,63557.0,0.157338]
[1721318142083,0.157309,63569.0,63566.0,0.001]
[1721318142252,0.05,63568.0,63566.0,0.001]
[1721318142600,0.05,63564.0,63557.0,0.002794]
[1721318143128,0.0638,63563.0,63553.0,0.07717479]
[1721318143323,0.0638,63563.0,63554.0,0.15717574]
[1721318143523,0.0638,63563.0,63554.0,0.1640474]
[1721318143790,0.0638,63563.0,63556.0,0.15734]
[1721318143988,0.0638,63563.0,63557.0,0.002794]
[1721318144184,0.314613,63571.0,63557.0,0.002794]
[1721318144185,0.0638,63569.0,63560.0,0.07717479]
[1721318144392,0.006,63568.0,63562.0,0.157326]
[1721318144589,0.006,63568.0,63563.0,0.002794]
[1721318144790,0.006,63568.0,63561.0,0.08311493]
[1721318145149,0.0777,63575.0,63561.0,0.39462479]
[1721318145341,0.0777,63575.0,63562.0,0.314652]
[1721318145641,0.0663,63576.0,63563.0,0.002794]
[1721318145642,0.05,63574.0,63563.0,0.002794]
[1721318145847,0.1163,63576.0,63563.0,0.002794]
[1721318146047,0.05,63572.0,63563.0,0.002794]
[1721318146636,0.273592,63576.0,63564.0,0.15732]
[1721318146842,0.05,63572.0,63564.0,0.15732]
[1721318147045,0.05,63571.0,63563.0,0.002794]
[1721318147258,0.05,63571.0,63561.0,0.07717479]
[1721318147259,0.05,63567.0,63561.0,0.002794]
[1721318147475,0.05,63567.0,63539.0,0.07717479]
[1721318147476,0.05,63563.0,63547.0,0.002794]
[1721318147687,0.05,63562.0,63552.0,0.160144]
[1721318147901,0.05,63558.0,63549.0,0.002794]
[1721318148120,0.05,63559.0,63553.0,0.0068973]
[1721318148337,0.0614,63561.0,63552.0,0.03]
[1721318148338,0.05,63560.0,63552.0,0.03]
[1721318148550,0.05,63554.0,63553.0,0.002794]
[1721318148769,0.05,63553.0,63552.0,0.03]
[1721318149264,0.31781898,63559.0,63552.0,0.03]
[1721318149265,0.05,63555.0,63552.0,0.03]
[1721318149499,0.05,63556.0,63547.0,0.002794]
[1721318149732,0.0614,63561.0,63553.0,0.07717479]
[1721318149949,0.05,63559.0,63554.0,0.002794]
[1721318150161,0.05,63559.0,63548.0,0.002794]
[1721318150375,0.05,63559.0,63550.0,0.002794]
[1721318150578,0.002,63554.0,63550.0,0.002794]
[1721318150800,0.002,63554.0,63550.0,0.160149]
[1721318151011,0.002,63554.0,63553.0,1.17861379]
[1721318151226,0.002,63554.0,63553.0,1.33299553]
[1721318151435,0.002,63554.0,63553.0,1.01829853]
[1721318152582,0.002,63554.0,63553.0,0.62642674]
[1721318152843,0.002,63554.0,63553.0,0.94112374]
[1721318153578,0.82762271,63579.0,63556.0,0.002794]
[1721318153826,0.05,63571.0,63562.0,0.07717479]
[1721318154045,0.05,63570.0,63563.0,0.160118]
[1721318154270,0.05,63572.0,63564.0,0.15732]
[1721318154516,0.05,63572.0,63563.0,0.002794]
[1721318154756,0.061,63574.0,63563.0,0.157323]
[1721318154757,0.05,63571.0,63563.0,0.157323]
[1721318154993,0.05,63572.0,63564.0,0.002794]
[1721318155231,0.0608,63580.0,63570.0,0.07717479]
[1721318155458,0.0608,63580.0,63564.0,0.002794]
[1721318155459,0.05,63565.0,63564.0,0.002794]
[1721318155690,0.05,63563.0,63556.0,0.00626153]
[1721318155978,0.05,63560.0,63557.0,0.002794]
[1721318156177,0.05,63558.0,63557.0,0.00690613]
[1721318156400,0.05,63557.0,63556.0,0.00626153]
[1721318156604,0.1148,63559.0,63557.0,0.00690613]
[1721318156816,0.05,63558.0,63557.0,0.00690613]
[1721318157021,0.1148,63559.0,63556.0,0.00626153]
[1721318157261,0.05,63557.0,63556.0,0.00626153]
[1721318157470,0.1148,63559.0,63556.0,0.00626153]
[1721318157675,0.05,63557.0,63556.0,0.00626153]
[1721318158351,0.1148,63559.0,63556.0,0.00626153]
[1721318158802,0.0661,63565.0,63557.0,0.07717479]
[1721318159030,0.0661,63565.0,63556.0,0.00626153]
[1721318159289,0.0661,63565.0,63558.0,0.00690749]
[1721318159527,0.05,63567.0,63559.0,0.002794]
[1721318159744,0.05,63567.0,63559.0,0.16423372]
[1721318159966,0.05,63567.0,63560.0,0.002794]
[1721318160196,0.05,63567.0,63560.0,0.00968794]
[1721318161332,0.008,63572.0,63562.0,0.002794]
[1721318161550,0.008,63572.0,63568.0,0.15731]
[1721318161771,0.008,63572.0,63570.0,0.157305]
[1721318161995,0.05,63579.0,63568.0,0.31776881]
[1721318162288,0.05,63561.0,63560.0,0.002794]
[1721318162529,0.009,63567.0,63553.0,0.04337322]
[1721318162530,0.0661,63566.0,63557.0,0.157338]
[1721318162745,0.11054657,63565.0,63558.0,0.002794]
[1721318162989,0.11054657,63565.0,63556.0,0.16360253]
[1721318162990,0.05,63560.0,63557.0,0.002794]
[1721318163239,0.207339,63557.0,63556.0,0.00626153]
[1721318163503,0.95035391,63557.0,63556.0,0.00626153]
[1721318164009,0.63567591,63557.0,63556.0,0.00626153]
[1721318164473,0.63252693,63557.0,63556.0,0.00626153]
[1721318164728,0.16050993,63557.0,63556.0,0.00626153]
[1721318165185,0.31894788,63557.0,63556.0,0.00626153]
[1721318165423,0.63362588,63557.0,63556.0,0.00626153]
[1721318165651,0.836695,63557.0,63556.0,0.00626153]
[1721318165872,0.95387318,63557.0,63556.0,0.00626153]
[1721318166621,0.11717818,63557.0,63556.0,0.00626153]
[1721318167049,0.006,63557.0,63556.0,0.00626153]
[1721318167560,0.006,63557.0,63556.0,0.63266727]
[1721318167800,0.006,63557.0,63556.0,1.26203327]
[1721318168269,0.006,63557.0,63556.0,1.68523327]
[1721318169849,0.05,63576.0,63566.0,0.157315]
[1721318170115,0.0614,63578.0,63567.0,0.47215262]
[1721318170343,0.20717074,63577.0,63567.0,0.46900874]
[1721318170583,0.0614,63578.0,63568.0,0.314623]
[1721318170843,0.05,63575.0,63569.0,0.31168974]
[1721318171107,0.0614,63578.0,63569.0,0.15438174]
[1721318171108,0.05,63574.0,63569.0,0.15438174]
[1721318171573,0.05,63574.0,63564.0,0.314639]
[1721318171574,0.05,63573.0,63567.0,0.157314]
[1721318171800,0.10801858,63578.0,63572.0,0.1573]
[1721318172021,0.05,63582.0,63570.0,0.157305]
[1721318172022,0.05,63579.0,63570.0,0.157305]
[1721318172248,0.04661858,63581.0,63570.0,0.157305]
[1721318172249,0.05,63577.0,63570.0,0.157305]
[1721318172468,0.05,63575.0,63568.0,0.15438174]
[1721318172720,0.05,63575.0,63568.0,0.31169274]
[1721318172948,0.05,63571.0,63568.0,0.15438174]
[1721318173174,0.05,63563.0,63557.0,0.002794]
[1721318173659,0.05,63563.0,63556.0,0.00626153]
[1721318173872,0.05,63559.0,63556.0,0.00626153]
[1721318174107,0.05,63559.0,63557.0,0.00525877]
[1721318174800,0.36125805,63566.0,63557.0,0.00525877]
[1721318174801,0.05,63558.0,63557.0,0.00525877]
[1721318175276,0.05,63558.0,63556.0,0.00626153]
[1721318175277,0.05,63557.0,63556.0,0.00626153]
[1721318175504,0.0466377,63561.0,63557.0,0.00525877]
[1721318175762,0.05,63559.0,63556.0,0.00626153]
[1721318175995,0.05,63559.0,63558.0,0.00525368]
[1721318176227,0.05,63559.0,63557.0,0.00525877]
[1721318176462,0.0466377,63561.0,63556.0,0.00626153]
[1721318176687,0.157337,63558.0,63556.0,0.00626153]
[1721318176912,0.05,63559.0,63556.0,0.00626153]
[1721318177379,0.04670562,63557.0,63556.0,0.00626153]
[1721318178077,0.07005843,63558.0,63556.0,0.00626153]
[1721318178082,0.07005843,63557.0,63556.0,0.00626153]
[1721318178321,0.04672056,63558.0,63557.0,0.314678]
[1721318178559,0.04672056,63559.0,63556.0,0.01427737]
[1721318178789,0.04672056,63559.0,63557.0,0.00980307]
[1721318179025,0.09672056,63558.0,63556.0,0.00626153]
[1721318179251,0.09673103,63557.0,63556.0,0.00626153]
[1721318179485,0.05,63557.0,63556.0,0.00626153]
[1721318179713,0.05,63557.0,63556.0,0.00726153]
[1721318180467,0.09673093,63557.0,63556.0,0.00726153]
[1721318180950,0.04673093,63557.0,63556.0,0.00726153]
[1721318181179,0.04673093,63558.0,63556.0,0.00726153]
[1721318181412,0.04673093,63557.0,63556.0,0.00726153]
[1721318181649,0.04673093,63558.0,63557.0,0.00525683]
[1721318181872,0.12009574,63559.0,63556.0,0.01252344]
[1721318182135,0.0967375,63557.0,63556.0,0.00726153]
[1721318182357,0.0467375,63557.0,63556.0,0.00726153]
[1721318182590,0.0967375,63558.0,63556.0,0.00726153]
[1721318182823,0.04673431,63557.0,63556.0,0.00726153]
[1721318183064,0.04673431,63558.0,63556.0,0.00726153]
[1721318183299,0.04673516,63558.0,63557.0,0.002794]
[1721318183554,0.07010353,63560.0,63556.0,0.08443632]
[1721318183555,0.04673516,63560.0,63556.0,0.08443632]
[1721318183806,0.04673701,63559.0,63557.0,0.00526695]
[1721318184045,0.04673701,63559.0,63558.0,0.002794]
[1721318184297,0.07010551,63560.0,63558.0,0.00526187]
[1721318184523,0.07008873,63559.0,63558.0,0.00526187]
[1721318184756,0.04672517,63560.0,63556.0,0.08343632]
[1721318184987,0.04672517,63560.0,63557.0,0.002794]
[1721318185251,0.09672517,63559.0,63557.0,0.00526695]
[1721318185484,0.05,63558.0,63557.0,0.00526695]
[1721318185728,0.522017,63557.0,63556.0,0.00626153]
[1721318186005,0.37611495,63557.0,63556.0,0.00626153]
[1721318186258,0.16877595,63557.0,63556.0,0.00626153]
[1721318186515,0.16354546,63557.0,63556.0,0.00626153]
[1721318186756,0.07009267,63557.0,63556.0,0.00626153]
[1721318187003,0.09345279,63559.0,63556.0,0.00726153]
[1721318187220,0.07010494,63558.0,63556.0,0.00726153]
[1721318187467,0.04674123,63557.0,63556.0,0.01253467]
[1721318187715,0.07010494,63558.0,63556.0,0.01153467]
[1721318187958,0.07010494,63558.0,63557.0,0.31486564]
[1721318188206,0.07010494,63558.0,63557.0,0.76859874]
[1721318188436,0.07010494,63558.0,63557.0,0.00702408]
[1721318188912,0.07010494,63558.0,63557.0,0.00526724]
[1721318189161,0.07010494,63558.0,63557.0,0.16260624]
[1721318191520,0.07010494,63558.0,63557.0,0.00526724]
[1721318192247,0.1146,63558.0,63556.0,0.00626153]
[1721318192682,0.1146,63558.0,63557.0,0.002]
[1721318192913,0.13468672,63558.0,63557.0,0.002]
[1721318193134,0.13468427,63558.0,63557.0,0.002]
[1721318193418,0.09345278,63559.0,63557.0,0.002]
[1721318193655,0.14345278,63559.0,63557.0,0.002]
[1721318193879,0.25959573,63558.0,63557.0,0.002]
[1721318194129,0.16562906,63558.0,63557.0,0.002]
[1721318194357,0.21562906,63558.0,63557.0,0.002]
[1721318194584,0.07009157,63558.0,63557.0,0.002]
[1721318194817,0.07009157,63559.0,63557.0,0.002]
[1721318195056,0.07009157,63559.0,63556.0,0.00626153]
[1721318195057,0.04672675,63559.0,63556.0,0.00626153]
[1721318195330,0.04672675,63558.0,63557.0,0.003794]
[1721318195581,0.04672675,63558.0,63557.0,0.001]
[1721318196089,0.04672675,63563.0,63558.0,0.314672]
[1721318196326,0.04755675,63566.0,63565.0,0.157319]
[1721318196559,0.00083,63566.0,63565.0,1.54101474]
[1721318196788,0.00083,63566.0,63565.0,1.64567979]
[1721318197055,0.00083,63566.0,63565.0,1.85565274]
[1721318197285,0.00083,63566.0,63565.0,2.12871726]
[1721318198249,0.00083,63566.0,63565.0,2.10571726]
[1721318198941,0.00083,63566.0,63565.0,1.79107926]
[1721318199177,0.00083,63566.0,63565.0,1.25561474]
[1721318199406,0.00083,63566.0,63565.0,0.94097674]
[1721318199874,0.00083,63566.0,63565.0,1.25561474]
[1721318200137,0.00083,63566.0,63565.0,1.38324007]
[1721318200591,0.00083,63566.0,63565.0,1.38624007]
[1721318202020,0.00834,63593.0,63565.0,0.55310707]
[1721318202293,0.46284816,63586.0,63579.0,0.314565]
[1721318202538,0.05,63583.0,63566.0,0.0815]
[1721318202784,0.0603,63582.0,63578.0,0.157287]
[1721318203019,0.0603,63582.0,63567.0,0.28144272]
[1721318203020,0.1103,63582.0,63572.0,0.314602]
[1721318203261,0.1103,63582.0,63565.0,0.002]
[1721318203262,0.05,63572.0,63565.0,0.002]
[1721318203488,0.05,63570.0,63566.0,0.002794]
[1721318203709,0.05,63569.0,63565.0,0.002]
[1721318203934,0.0784,63570.0,63566.0,0.002794]
[1721318204157,0.05,63567.0,63566.0,0.00815068]
[1721318204384,0.0603,63567.0,63558.0,0.002794]
[1721318204618,0.04670895,63573.0,63569.0,0.157307]
[1721318204875,0.0603,63575.0,63569.0,0.31168874]
[1721318205122,0.0603,63575.0,63570.0,0.00532875]
[1721318205383,0.05,63574.0,63570.0,0.00532875]
[1721318205629,0.05,63572.0,63565.0,0.002794]
[1721318205867,0.05,63572.0,63571.0,0.00532366]
[1721318206167,0.10699082,63575.0,63562.0,0.002794]
[1721318206168,0.05,63569.0,63562.0,0.002794]
[1721318206375,0.05,63568.0,63563.0,0.15438174]
[1721318206621,0.1200346,63572.0,63564.0,0.002794]
[1721318206853,0.05,63566.0,63564.0,0.00815323]
[1721318207078,0.05,63566.0,63564.0,0.00535923]
[1721318207535,0.05,63566.0,63561.0,0.002794]
[1721318207788,0.05,63566.0,63565.0,0.00535415]
[1721318208009,0.05,63566.0,63562.0,0.15438174]
[1721318208223,0.364643,63564.0,63563.0,0.002794]
[1721318208447,0.05,63558.0,63556.0,0.00626153]
[1721318209164,0.04669118,63561.0,63556.0,0.00626153]
[1721318209387,0.04669118,63562.0,63557.0,0.002794]
[1721318209608,0.207325,63563.0,63556.0,0.00626153]
[1721318209838,0.05,63562.0,63556.0,0.00626153]
[1721318210081,0.05,63562.0,63557.0,0.002794]
[1721318210334,0.05,63562.0,63556.0,0.00626153]
[1721318210561,0.004,63561.0,63556.0,0.00626153]
[1721318210791,0.004,63561.0,63560.0,0.07717479]
[1721318211240,0.004,63561.0,63560.0,0.54936586]
[1721318211464,0.004,63561.0,63560.0,1.33602286]
[1721318211688,0.004,63561.0,63560.0,1.10011353]
[1721318211902,0.09338981,63565.0,63560.0,1.10011353]
[1721318211903,0.09338981,63565.0,63564.0,0.157321]
[1721318212125,0.09338981,63565.0,63564.0,0.31170274]
[1721318212352,0.09338981,63565.0,63557.0,0.001]
[1721318212615,0.09338981,63565.0,63556.0,0.32094153]
[1721318212616,0.05,63562.0,63558.0,0.15717574]
[1721318212834,0.05,63560.0,63558.0,0.15438174]
[1721318213073,0.09338981,63565.0,63559.0,0.002794]
[1721318213316,0.09338981,63565.0,63559.0,0.23435053]
[1721318213792,0.09638981,63565.0,63559.0,0.23435053]
[1721318214018,0.05,63562.0,63559.0,0.15717574]
[1721318214244,0.05,63564.0,63559.0,0.15438174]
[1721318214464,0.05,63562.0,63560.0,0.002794]
[1721318214917,0.05,63562.0,63556.0,0.00626153]
[1721318215173,0.05,63562.0,63559.0,0.001]
[1721318215396,0.1145,63560.0,63559.0,0.001]
[1721318215618,0.271831,63560.0,63556.0,0.00626153]
[1721318215834,0.05,63557.0,63556.0,0.00626153]
[1721318216265,0.05,63558.0,63556.0,0.00626153]
[1721318216555,0.05,63557.0,63556.0,0.00626153]
[1721318216781,0.05,63558.0,63556.0,0.00626153]
[1721318217002,0.05,63557.0,63556.0,0.00626153]
[1721318217938,0.207339,63557.0,63556.0,0.00626153]
[1721318218166,0.522017,63557.0,63556.0,0.00626153]
[1721318218825,1.54957286,63557.0,63556.0,0.00626153]
[1721318219110,1.70056571,63557.0,63556.0,0.00626153]
[1721318219326,1.70056571,63557.0,63532.0,0.002794]
[1721318219327,0.05,63534.0,63532.0,0.002794]
[1721318219552,0.05,63534.0,63530.0,0.002794]
[1721318219777,0.1141,63536.0,63533.0,0.00551797]
[1721318219992,0.1141,63536.0,63531.0,0.15438174]
[1721318220215,0.0641,63536.0,63531.0,0.15438174]
[1721318220455,0.05314898,63535.0,63534.0,0.00551288]
[1721318220678,0.522216,63530.0,63529.0,2.011e-05]
[1721318220901,0.837027,63530.0,63529.0,2.011e-05]
[1721318221360,0.522216,63530.0,63529.0,2.011e-05]
[1721318221821,0.56885239,63530.0,63529.0,2.011e-05]
[1721318222046,0.88366339,63530.0,63529.0,2.011e-05]
[1721318222264,0.827027,63530.0,63529.0,2.011e-05]
[1721318222484,0.777027,63530.0,63529.0,2.011e-05]
[1721318222698,0.823666,63530.0,63529.0,2.011e-05]
[1721318222935,1.091838,63530.0,63529.0,2.011e-05]
[1721318223151,1.30124094,63530.0,63529.0,2.011e-05]
[1721318223371,1.39261974,63530.0,63529.0,2.011e-05]
[1721318223810,1.43218278,63530.0,63529.0,2.011e-05]
[1721318224323,1.39561974,63530.0,63529.0,2.011e-05]
[1721318224540,1.44218278,63530.0,63529.0,2.011e-05]
[1721318224755,1.39561974,63530.0,63529.0,2.011e-05]
[1721318225180,1.81043074,63530.0,63529.0,2.011e-05]
[1721318225416,0.351353,63511.0,63510.0,0.000924]
[1721318225916,0.666259,63511.0,63510.0,0.000924]
[1721318226171,0.1439,63511.0,63510.0,0.000924]
[1721318226416,0.0757,63519.0,63510.0,0.003718]
[1721318226656,0.0757,63519.0,63518.0,0.07717479]
[1721318226903,0.0608,63521.0,63518.0,0.07717479]
[1721318227587,0.05,63528.0,63519.0,0.00452233]
[1721318227808,0.0757,63533.0,63526.0,0.07717479]
[1721318228031,0.05,63532.0,63527.0,0.002794]
[1721318228254,0.05,63531.0,63527.0,0.002794]
[1721318228491,0.0608,63535.0,63527.0,0.002794]
[1721318228492,0.05,63528.0,63527.0,0.002794]
[1721318228752,0.05,63523.0,63520.0,0.002794]
[1721318228981,0.314832,63526.0,63513.0,0.157447]
[1721318228982,0.05,63521.0,63515.0,0.157442]
[1721318229209,0.05,63522.0,63516.0,0.23740879]
[1721318229436,0.05,63520.0,63516.0,0.002794]
[1721318229663,0.05,63516.0,63511.0,0.002794]
[1721318229903,0.05174249,63532.0,63512.0,0.15753056]
[1721318230129,0.0603,63537.0,63533.0,0.07717479]
[1721318230593,0.05,63538.0,63533.0,0.07717479]
[1721318230826,0.05,63541.0,63527.0,0.002794]
[1721318231050,0.05,63538.0,63529.0,0.157407]
[1721318231268,0.05,63540.0,63530.0,0.15717574]
[1721318231494,0.014,63537.0,63530.0,0.15438174]
[1721318232005,0.014,63537.0,63536.0,0.157391]
[1721318232793,0.014,63541.0,63537.0,0.0664]
[1721318233028,0.014,63541.0,63540.0,1.30386153]
[1721318233259,0.99184871,63563.0,63540.0,1.64162353]
[1721318233487,0.52534871,63563.0,63554.0,0.157345]
[1721318233711,0.314618,63570.0,63554.0,0.157345]
[1721318233712,0.05,63565.0,63559.0,0.314667]
[1721318233924,0.05,63564.0,63558.0,0.157335]
[1721318234143,0.05,63564.0,63558.0,0.31171674]
[1721318234642,0.01,63563.0,63559.0,0.157333]
[1721318235548,0.01,63563.0,63560.0,0.157329]
[1721318235773,0.01,63563.0,63562.0,0.786632]
[1721318235999,0.0649,63575.0,63567.0,0.157314]
[1721318236227,0.0649,63575.0,63568.0,0.157311]
[1721318236682,0.0643,63582.0,63569.0,0.15438174]
[1721318236900,0.0643,63582.0,63576.0,0.157291]
[1721318237122,0.1143,63582.0,63576.0,0.157291]
[1721318237383,0.05,63586.0,63580.0,0.15728]
[1721318237602,0.05,63586.0,63581.0,0.157278]
[1721318237830,0.014,63582.0,63581.0,0.157278]
[1721318238044,0.014,63582.0,63579.0,0.314568]
[1721318238045,0.014,63582.0,63580.0,0.0031454]
[1721318238267,0.014,63582.0,63581.0,0.157279]
[1721318238770,0.014,63582.0,63580.0,0.0031454]
[1721318238771,0.014,63582.0,63580.0,0.157281]
[1721318239000,0.05,63586.0,63580.0,0.157281]
[1721318239219,0.05,63579.0,63574.0,0.157294]
[1721318239432,0.05,63579.0,63575.0,0.31167474]
[1721318240129,0.05,63576.0,63573.0,0.157298]
[1721318240367,0.05,63576.0,63564.0,0.600042]
[1721318240368,0.05,63574.0,63561.0,0.0762]
[1721318240613,0.05,63562.0,63557.0,0.15438174]
[1721318241062,0.05,63558.0,63557.0,0.01558554]
[1721318241287,0.05,63559.0,63557.0,0.01558554]
[1721318241509,0.05,63561.0,63557.0,0.01558554]
[1721318241939,0.05,63558.0,63557.0,0.01558554]
[1721318242831,0.05,63565.0,63557.0,0.01558554]
[1721318243722,0.05,63563.0,63557.0,0.01558554]
[1721318243960,0.05,63558.0,63557.0,0.01558554]
[1721318244193,0.1274,63558.0,63557.0,0.01558554]
[1721318244636,0.1254,63558.0,63557.0,0.01558554]
[1721318245559,0.0754,63558.0,63557.0,0.01558554]
[1721318245780,0.05,63565.0,63557.0,0.16996728]
[1721318246013,0.05,63562.0,63557.0,0.16996728]
[1721318246246,0.0814,63566.0,63557.0,0.16996728]
[1721318246458,0.05,63567.0,63561.0,0.157328]
[1721318246684,0.0642,63571.0,63562.0,0.23155653]
[1721318246913,0.46304871,63584.0,63576.0,0.314581]
[1721318246914,0.05,63579.0,63576.0,0.314581]
[1721318247138,0.05,63579.0,63576.0,0.01558554]
[1721318247416,0.05,63577.0,63576.0,0.01558554]
[1721318247647,0.0665,63584.0,63576.0,0.01558554]
[1721318247873,0.0814,63592.0,63578.0,0.07717479]
[1721318248102,0.0814,63592.0,63579.0,0.43978174]
[1721318248339,0.07484,63593.0,63583.0,0.314545]
[1721318248563,0.07484,63593.0,63590.0,0.157256]
[1721318248564,0.00834,63593.0,63590.0,0.157256]
[1721318248793,0.00834,63593.0,63590.0,0.17284154]
[1721318249441,0.05,63591.0,63590.0,0.01558554]
[1721318250541,0.005,63592.0,63591.0,0.157254]
[1721318250765,0.05,63591.0,63590.0,0.01558554]
[1721318251172,0.058,63591.0,63590.0,0.01558554]
[1721318251792,0.05834,63593.0,63590.0,0.01558554]
[1721318251964,0.004,63591.0,63590.0,0.01558554]
[1721318252789,0.004,63591.0,63590.0,0.17284254]
[1721318252989,0.004,63591.0,63590.0,0.48735654]
[1721318253194,0.00834,63593.0,63592.0,0.471756]
[1721318253400,0.00834,63593.0,63592.0,0.78626]
[1721318253616,0.00834,63593.0,63592.0,0.471756]
[1721318253856,0.00834,63593.0,63592.0,0.78626]
[1721318254088,0.00834,63593.0,63592.0,0.471756]
[1721318254270,0.00834,63593.0,63592.0,0.78626]